Workbook

Sheet Disclaimer
B2: Copyright © 2019 Saxo Bank A/S Licensed under the Apache License, Version 2.0 (the "License"); You may not use this file except in compliance with the License. You may obtain a copy of the License at http://www.apache.org/licenses/LICENSE-2.0 Unless required by applicable law or agreed to in writing, software distributed under the License is distributed on an "AS IS" BASIS, WITHOUT WARRANTIES OR CONDITIONS OF ANY KIND, either express or implied. See the License for the specific language governing permissions and limitations under the License.

Sheet Chart
A1: OpenAPI RSI Indicator
A3: UIC (FX only) | B3: 22
A4: AssetType | B4: FxSpot
A5: Symbol | B5: =_xll.OpenAPIGet("/openapi/ref/v1/instruments/details/?Uics="&Chart!B3&"&AssetTypes="&Chart!B4&"&FieldGroups=","Symbol") -> GBPAUD
A6: Horizon (mins) | B6: 10
A7: Datapoints (50-1200) | B7: 240
A9: RSI indicator
A10: Look-back window | B10: 20
A11: High | B11: 70
A12: Low | B12: 30
A13: Current RSI | B13: 36.45886726

Sheet Data
A1: Date & Time (UTC) | B1: Price | C1: Change | D1: Gain | E1: Loss | F1: Avg Gain | G1: Avg Loss | H1: RS | I1: RSI | J1: High | K1: Low
A2: 2019-04-04T21:50:00 | B2: 1.83757 | J2: 70 | K2: 30
A3: 2019-04-04T22:00:00 | B3: 1.83818 | C3: =(B3-B2) -> 0.00061 | D3: =IF(C3 > 0, C3) -> 0.00061 | E3: =IF(C3 < 0, C3 * -1) -> FALSE | J3: 70 | K3: 30
A4: 2019-04-04T22:10:00 | B4: 1.83827 | C4: 9e-05 | D4: 9e-05 | E4: FALSE | J4: 70 | K4: 30
A5: 2019-04-04T22:20:00 | B5: 1.83794 | C5: -0.00033 | D5: FALSE | E5: 0.00033 | J5: 70 | K5: 30
A6: 2019-04-04T22:30:00 | B6: 1.83799 | C6: 5e-05 | D6: 5e-05 | E6: FALSE | J6: 70 | K6: 30
A7: 2019-04-04T22:40:00 | B7: 1.83809 | C7: 0.0001 | D7: 0.0001 | E7: FALSE | J7: 70 | K7: 30
A8: 2019-04-04T22:50:00 | B8: 1.83823 | C8: 0.00014 | D8: 0.00014 | E8: FALSE | J8: 70 | K8: 30
A9: 2019-04-04T23:00:00 | B9: 1.83814 | C9: -9e-05 | D9: FALSE | E9: 9e-05 | J9: 70 | K9: 30
A10: 2019-04-04T23:10:00 | B10: 1.83821 | C10: 7e-05 | D10: 7e-05 | E10: FALSE | J10: 70 | K10: 30
A11: 2019-04-04T23:20:00 | B11: 1.8383 | C11: 9e-05 | D11: 9e-05 | E11: FALSE | J11: 70 | K11: 30
A12: 2019-04-04T23:30:00 | B12: 1.8384 | C12: 0.0001 | D12: 0.0001 | E12: FALSE | J12: 70 | K12: 30
A13: 2019-04-04T23:40:00 | B13: 1.83845 | C13: 5e-05 | D13: 5e-05 | E13: FALSE | J13: 70 | K13: 30
A14: 2019-04-04T23:50:00 | B14: 1.83887 | C14: 0.00042 | D14: 0.00042 | E14: FALSE | J14: 70 | K14: 30
A15: 2019-04-05 | B15: 1.83666 | C15: -0.00221 | D15: FALSE | E15: 0.00221 | J15: 70 | K15: 30
A16: 2019-04-05T00:10:00 | B16: 1.83799 | C16: 0.00133 | D16: 0.00133 | E16: FALSE | J16: 70 | K16: 30
A17: 2019-04-05T00:20:00 | B17: 1.83791 | C17: -8e-05 | D17: FALSE | E17: 8e-05 | J17: 70 | K17: 30
A18: 2019-04-05T00:30:00 | B18: 1.83745 | C18: -0.00046 | D18: FALSE | E18: 0.00046 | J18: 70 | K18: 30
A19: 2019-04-05T00:40:00 | B19: 1.83834 | C19: 0.00089 | D19: 0.00089 | E19: FALSE | J19: 70 | K19: 30
A20: 2019-04-05T00:50:00 | B20: 1.83812 | C20: -0.00022 | D20: FALSE | E20: 0.00022 | J20: 70 | K20: 30
A21: 2019-04-05T01:00:00 | B21: 1.83763 | C21: -0.00049 | D21: FALSE | E21: 0.00049 | J21: 70 | K21: 30
A22: 2019-04-05T01:10:00 | B22: 1.83741 | C22: -0.00022 | D22: FALSE | E22: 0.00022 | F22: =AVERAGE(D3:D22) -> 0.0003283333333 | G22: =AVERAGE(E3:E22) -> 0.0005125 | H22: =F22/G22 -> 0.6406504065 | I22: =100-(100/(1+H22)) -> 39.04856293 | J22: 70 | K22: 30
A23: 2019-04-05T01:20:00 | B23: 1.83723 | C23: -0.00018 | D23: FALSE | E23: 0.00018 | F23: =((F22)*19+D23)/20 -> 0.0003119166667 | G23: =((G22)*19+E23)/20 -> 0.000495875 | H23: 0.6290227712 | I23: 38.61350389 | J23: 70 | K23: 30
A24: 2019-04-05T01:30:00 | B24: 1.83666 | C24: -0.00057 | D24: FALSE | E24: 0.00057 | F24: 0.0002963208333 | G24: 0.00049958125 | H24: 0.5931384201 | I24: 37.23081514 | J24: 70 | K24: 30
A25: 2019-04-05T01:40:00 | B25: 1.83681 | C25: 0.00015 | D25: 0.00015 | E25: FALSE | F25: 0.0002890047917 | G25: 0.0004746021875 | H25: 0.6089411285 | I25: 37.84732193 | J25: 70 | K25: 30
A26: 2019-04-05T01:50:00 | B26: 1.83693 | C26: 0.00012 | D26: 0.00012 | E26: FALSE | F26: 0.0002805545521 | G26: 0.0004508720781 | H26: 0.6222486725 | I26: 38.35716947 | J26: 70 | K26: 30
A27: 2019-04-05T02:00:00 | B27: 1.83623 | C27: -0.0007 | D27: FALSE | E27: 0.0007 | F27: 0.0002665268245 | G27: 0.0004633284742 | H27: 0.5752437834 | I27: 36.51776249 | J27: 70 | K27: 30
A28: 2019-04-05T02:10:00 | B28: 1.8362 | C28: -3e-05 | D28: FALSE | E28: 3e-05 | F28: 0.0002532004833 | G28: 0.0004416620505 | H28: 0.5732901049 | I28: 36.43893158 | J28: 70 | K28: 30
A29: 2019-04-05T02:20:00 | B29: 1.83603 | C29: -0.00017 | D29: FALSE | E29: 0.00017 | F29: 0.0002405404591 | G29: 0.000428078948 | H29: 0.5619067703 | I29: 35.97569208 | J29: 70 | K29: 30
A30: 2019-04-05T02:30:00 | B30: 1.8362 | C30: 0.00017 | D30: 0.00017 | E30: FALSE | F30: 0.0002370134361 | G30: 0.0004066750006 | H30: 0.5828079813 | I30: 36.82114244 | J30: 70 | K30: 30
A31: 2019-04-05T02:40:00 | B31: 1.83612 | C31: -8e-05 | D31: FALSE | E31: 8e-05 | F31: 0.0002251627643 | G31: 0.0003903412506 | H31: 0.5768356893 | I31: 36.58185144 | J31: 70 | K31: 30
A32: 2019-04-05T02:50:00 | B32: 1.836 | C32: -0.00012 | D32: FALSE | E32: 0.00012 | F32: 0.0002139046261 | G32: 0.000376824188 | H32: 0.5676509972 | I32: 36.21029159 | J32: 70 | K32: 30
A33: 2019-04-05T03:00:00 | B33: 1.83681 | C33: 0.00081 | D33: 0.00081 | E33: FALSE | F33: 0.0002437093948 | G33: 0.0003579829786 | H33: 0.6807848679 | I33: 40.50398602 | J33: 70 | K33: 30
A34: 2019-04-05T03:10:00 | B34: 1.8369 | C34: 9e-05 | D34: 9e-05 | E34: FALSE | F34: 0.0002360239251 | G34: 0.0003400838297 | H34: 0.6940168995 | I34: 40.96871169 | J34: 70 | K34: 30
A35: 2019-04-05T03:20:00 | B35: 1.83726 | C35: 0.00036 | D35: 0.00036 | E35: FALSE | F35: 0.0002422227288 | G35: 0.0003230796382 | H35: 0.749730717 | I35: 42.84834859 | J35: 70 | K35: 30
A36: 2019-04-05T03:30:00 | B36: 1.8371 | C36: -0.00016 | D36: FALSE | E36: 0.00016 | F36: 0.0002301115924 | G36: 0.0003149256563 | H36: 0.730685442 | I36: 42.21942499 | J36: 70 | K36: 30
A37: 2019-04-05T03:40:00 | B37: 1.83721 | C37: 0.00011 | D37: 0.00011 | E37: FALSE | F37: 0.0002241060128 | G37: 0.0002991793735 | H37: 0.7490690623 | I37: 42.82672871 | J37: 70 | K37: 30
A38: 2019-04-05T03:50:00 | B38: 1.83799 | C38: 0.00078 | D38: 0.00078 | E38: FALSE | F38: 0.0002519007121 | G38: 0.0002842204048 | H38: 0.8862865152 | I38: 46.9857844 | J38: 70 | K38: 30
A39: 2019-04-05T04:00:00 | B39: 1.83763 | C39: -0.00036 | D39: FALSE | E39: 0.00036 | F39: 0.0002393056765 | G39: 0.0002880093846 | H39: 0.8308954129 | I39: 45.3819157 | J39: 70 | K39: 30
A40: 2019-04-05T04:10:00 | B40: 1.8375 | C40: -0.00013 | D40: FALSE | E40: 0.00013 | F40: 0.0002273403927 | G40: 0.0002801089153 | H40: 0.8116142694 | I40: 44.80061143 | J40: 70 | K40: 30
A41: 2019-04-05T04:20:00 | B41: 1.8377 | C41: 0.0002 | D41: 0.0002 | E41: FALSE | F41: 0.0002259733731 | G41: 0.0002661034696 | H41: 0.8491936366 | I41: 45.92237502 | J41: 70 | K41: 30
A42: 2019-04-05T04:30:00 | B42: 1.83826 | C42: 0.00056 | D42: 0.00056 | E42: FALSE | F42: 0.0002426747044 | G42: 0.0002527982961 | H42: 0.9599538769 | I42: 48.97839119 | J42: 70 | K42: 30
A43: 2019-04-05T04:40:00 | B43: 1.83823 | C43: -3e-05 | D43: FALSE | E43: 3e-05 | F43: 0.0002305409692 | G43: 0.0002416583813 | H43: 0.9539953382 | I43: 48.82280523 | J43: 70 | K43: 30
A44: 2019-04-05T04:50:00 | B44: 1.83793 | C44: -0.0003 | D44: FALSE | E44: 0.0003 | F44: 0.0002190139207 | G44: 0.0002445754622 | H44: 0.895486075 | I44: 47.24308381 | J44: 70 | K44: 30
A45: 2019-04-05T05:00:00 | B45: 1.83809 | C45: 0.00016 | D45: 0.00016 | E45: FALSE | F45: 0.0002160632247 | G45: 0.0002323466891 | H45: 0.9299173813 | I45: 48.18431039 | J45: 70 | K45: 30
A46: 2019-04-05T05:10:00 | B46: 1.83987 | C46: 0.00178 | D46: 0.00178 | E46: FALSE | F46: 0.0002942600635 | G46: 0.0002207293547 | H46: 1.333126099 | I46: 57.13905045 | J46: 70 | K46: 30
A47: 2019-04-05T05:20:00 | B47: 1.83968 | C47: -0.00019 | D47: FALSE | E47: 0.00019 | F47: 0.0002795470603 | G47: 0.0002191928869 | H47: 1.275347317 | I47: 56.05066565 | J47: 70 | K47: 30
A48: 2019-04-05T05:30:00 | B48: 1.84022 | C48: 0.00054 | D48: 0.00054 | E48: FALSE | F48: 0.0002925697073 | G48: 0.0002082332426 | H48: 1.405009612 | I48: 58.42012459 | J48: 70 | K48: 30
A49: 2019-04-05T05:40:00 | B49: 1.84003 | C49: -0.00019 | D49: FALSE | E49: 0.00019 | F49: 0.0002779412219 | G49: 0.0002073215805 | H49: 1.340628512 | I49: 57.2764326 | J49: 70 | K49: 30
A50: 2019-04-05T05:50:00 | B50: 1.83972 | C50: -0.00031 | D50: FALSE | E50: 0.00031 | F50: 0.0002640441608 | G50: 0.0002124555014 | H50: 1.24282101 | I50: 55.41329443 | J50: 70 | K50: 30
A51: 2019-04-05T06:00:00 | B51: 1.83985 | C51: 0.00013 | D51: 0.00013 | E51: FALSE | F51: 0.0002573419528 | G51: 0.0002018327264 | H51: 1.275025896 | I51: 56.04445638 | J51: 70 | K51: 30
A52: 2019-04-05T06:10:00 | B52: 1.83851 | C52: -0.00134 | D52: FALSE | E52: 0.00134 | F52: 0.0002444748551 | G52: 0.00025874109 | H52: 0.944862894 | I52: 48.58249375 | J52: 70 | K52: 30
A53: 2019-04-05T06:20:00 | B53: 1.83949 | C53: 0.00098 | D53: 0.00098 | E53: FALSE | F53: 0.0002812511124 | G53: 0.0002458040355 | H53: 1.144208685 | I53: 53.36274837 | J53: 70 | K53: 30
A54: 2019-04-05T06:30:00 | B54: 1.83892 | C54: -0.00057 | D54: FALSE | E54: 0.00057 | F54: 0.0002671885568 | G54: 0.0002620138338 | H54: 1.019749808 | I54: 50.4889172 | J54: 70 | K54: 30
A55: 2019-04-05T06:40:00 | B55: 1.83819 | C55: -0.00073 | D55: FALSE | E55: 0.00073 | F55: 0.0002538291289 | G55: 0.0002854131421 | H55: 0.8893393173 | I55: 47.07144498 | J55: 70 | K55: 30
A56: 2019-04-05T06:50:00 | B56: 1.83674 | C56: -0.00145 | D56: FALSE | E56: 0.00145 | F56: 0.0002411376725 | G56: 0.000343642485 | H56: 0.7017108856 | I56: 41.23561126 | J56: 70 | K56: 30
A57: 2019-04-05T07:00:00 | B57: 1.83736 | C57: 0.00062 | D57: 0.00062 | E57: FALSE | F57: 0.0002600807888 | G57: 0.0003264603607 | H57: 0.7966688154 | I57: 44.34143948 | J57: 70 | K57: 30
A58: 2019-04-05T07:10:00 | B58: 1.83842 | C58: 0.00106 | D58: 0.00106 | E58: FALSE | F58: 0.0003000767494 | G58: 0.0003101373427 | H58: 0.9675608452 | I58: 49.17565053 | J58: 70 | K58: 30
A59: 2019-04-05T07:20:00 | B59: 1.83791 | C59: -0.00051 | D59: FALSE | E59: 0.00051 | F59: 0.0002850729119 | G59: 0.0003201304755 | H59: 0.890489765 | I59: 47.10365438 | J59: 70 | K59: 30
A60: 2019-04-05T07:30:00 | B60: 1.83857 | C60: 0.00066 | D60: 0.00066 | E60: FALSE | F60: 0.0003038192663 | G60: 0.0003041239518 | H60: 0.9989981538 | I60: 49.97494129 | J60: 70 | K60: 30
A61: 2019-04-05T07:40:00 | B61: 1.83826 | C61: -0.00031 | D61: FALSE | E61: 0.00031 | F61: 0.000288628303 | G61: 0.0003044177542 | H61: 0.9481322921 | I61: 48.66878373 | J61: 70 | K61: 30
A62: 2019-04-05T07:50:00 | B62: 1.83727 | C62: -0.00099 | D62: FALSE | E62: 0.00099 | F62: 0.0002741968879 | G62: 0.0003386968665 | H62: 0.8095642889 | I62: 44.73807833 | J62: 70 | K62: 30
A63: 2019-04-05T08:00:00 | B63: 1.83691 | C63: -0.00036 | D63: FALSE | E63: 0.00036 | F63: 0.0002604870435 | G63: 0.0003397620232 | H63: 0.7666749834 | I63: 43.39649288 | J63: 70 | K63: 30
A64: 2019-04-05T08:10:00 | B64: 1.83769 | C64: 0.00078 | D64: 0.00078 | E64: FALSE | F64: 0.0002864626913 | G64: 0.000322773922 | H64: 0.8875025886 | I64: 47.01994021 | J64: 70 | K64: 30
A65: 2019-04-05T08:20:00 | B65: 1.83833 | C65: 0.00064 | D65: 0.00064 | E65: FALSE | F65: 0.0003041395567 | G65: 0.0003066352259 | H65: 0.991861114 | I65: 49.79569645 | J65: 70 | K65: 30
A66: 2019-04-05T08:30:00 | B66: 1.8377 | C66: -0.00063 | D66: FALSE | E66: 0.00063 | F66: 0.0002889325789 | G66: 0.0003228034646 | H66: 0.8950727318 | I66: 47.23157675 | J66: 70 | K66: 30
A67: 2019-04-05T08:40:00 | B67: 1.83809 | C67: =(B67-B66) -> 0.00039 | D67: =IF(C67 > 0, C67) -> 0.00039 | E67: =IF(C67 < 0, C67 * -1) -> FALSE | F67: 0.00029398595 | G67: 0.0003066632914 | H67: 0.9586603882 | I67: 48.94469679 | J67: 70 | K67: 30
A68: 2019-04-05T08:50:00 | B68: 1.83596 | C68: -0.00213 | D68: FALSE | E68: 0.00213 | F68: 0.0002792866525 | G68: 0.0003978301268 | H68: 0.7020248936 | I68: 41.24645276 | J68: 70 | K68: 30
A69: 2019-04-05T09:00:00 | B69: 1.83602 | C69: 6e-05 | D69: 6e-05 | E69: FALSE | F69: 0.0002683223198 | G69: 0.0003779386205 | H69: 0.7099626905 | I69: 41.51919188 | J69: 70 | K69: 30
A70: 2019-04-05T09:10:00 | B70: 1.8366 | C70: 0.00058 | D70: 0.00058 | E70: FALSE | F70: 0.0002839062038 | G70: 0.0003590416894 | H70: 0.7907332552 | I70: 44.15695375 | J70: 70 | K70: 30
A71: 2019-04-05T09:20:00 | B71: 1.83713 | C71: 0.00053 | D71: 0.00053 | E71: FALSE | F71: 0.0002962108937 | G71: 0.000341089605 | H71: 0.8684254499 | I71: 46.4789992 | J71: 70 | K71: 30
A72: 2019-04-05T09:30:00 | B72: 1.83706 | C72: -7e-05 | D72: FALSE | E72: 7e-05 | F72: 0.000281400349 | G72: 0.0003275351247 | H72: 0.8591455625 | I72: 46.21185021 | J72: 70 | K72: 30
A73: 2019-04-05T09:40:00 | B73: 1.838 | C73: 0.00094 | D73: 0.00094 | E73: FALSE | F73: 0.0003143303315 | G73: 0.0003111583685 | H73: 1.010194047 | I73: 50.25355878 | J73: 70 | K73: 30
A74: 2019-04-05T09:50:00 | B74: 1.83758 | C74: -0.00042 | D74: FALSE | E74: 0.00042 | F74: 0.0002986138149 | G74: 0.0003166004501 | H74: 0.94318822 | I74: 48.53818124 | J74: 70 | K74: 30
A75: 2019-04-05T10:00:00 | B75: 1.83701 | C75: -0.00057 | D75: FALSE | E75: 0.00057 | F75: 0.0002836831242 | G75: 0.0003292704276 | H75: 0.8615505689 | I75: 46.28134112 | J75: 70 | K75: 30
A76: 2019-04-05T10:10:00 | B76: 1.83791 | C76: 0.0009 | D76: 0.0009 | E76: FALSE | F76: 0.000314498968 | G76: 0.0003128069062 | H76: 1.005409285 | I76: 50.13486737 | J76: 70 | K76: 30
A77: 2019-04-05T10:20:00 | B77: 1.8373 | C77: -0.00061 | D77: FALSE | E77: 0.00061 | F77: 0.0002987740196 | G77: 0.0003276665609 | H77: 0.911823345 | I77: 47.69391207 | J77: 70 | K77: 30
A78: 2019-04-05T10:30:00 | B78: 1.83655 | C78: -0.00075 | D78: FALSE | E78: 0.00075 | F78: 0.0002838353186 | G78: 0.0003487832328 | H78: 0.8137871661 | I78: 44.86673968 | J78: 70 | K78: 30
A79: 2019-04-05T10:40:00 | B79: 1.83624 | C79: -0.00031 | D79: FALSE | E79: 0.00031 | F79: 0.0002696435527 | G79: 0.0003468440712 | H79: 0.7774201005 | I79: 43.73868059 | J79: 70 | K79: 30
A80: 2019-04-05T10:50:00 | B80: 1.83624 | C80: 0 | D80: FALSE | E80: FALSE | F80: 0.000256161375 | G80: 0.0003295018676 | H80: 0.7774201005 | I80: 43.73868059 | J80: 70 | K80: 30
A81: 2019-04-05T11:00:00 | B81: 1.83553 | C81: -0.00071 | D81: FALSE | E81: 0.00071 | F81: 0.0002433533063 | G81: 0.0003485267742 | H81: 0.6982341796 | I81: 41.115306 | J81: 70 | K81: 30
A82: 2019-04-05T11:10:00 | B82: 1.83519 | C82: -0.00034 | D82: FALSE | E82: 0.00034 | F82: 0.000231185641 | G82: 0.0003481004355 | H82: 0.66413488 | I82: 39.90871701 | J82: 70 | K82: 30
A83: 2019-04-05T11:20:00 | B83: 1.83491 | C83: -0.00028 | D83: FALSE | E83: 0.00028 | F83: 0.0002196263589 | G83: 0.0003446954138 | H83: 0.6371606646 | I83: 38.91863996 | J83: 70 | K83: 30
A84: 2019-04-05T11:30:00 | B84: 1.83522 | C84: 0.00031 | D84: 0.00031 | E84: FALSE | F84: 0.000224145041 | G84: 0.0003274606431 | H84: 0.6844945972 | I84: 40.63501292 | J84: 70 | K84: 30
A85: 2019-04-05T11:40:00 | B85: 1.83626 | C85: 0.00104 | D85: 0.00104 | E85: FALSE | F85: 0.0002649377889 | G85: 0.0003110876109 | H85: 0.8516500807 | I85: 45.99411571 | J85: 70 | K85: 30
A86: 2019-04-05T11:50:00 | B86: 1.83617 | C86: -9e-05 | D86: FALSE | E86: 9e-05 | F86: 0.0002516908995 | G86: 0.0003000332304 | H86: =F86/G86 -> 0.8388767443 | I86: =100-(100/(1+H86)) -> 45.6189762 | J86: 70 | K86: 30
A87: 2019-04-05T12:00:00 | B87: 1.83603 | C87: -0.00014 | D87: FALSE | E87: 0.00014 | F87: =((F86)*19+D87)/20 -> 0.0002391063545 | G87: =((G86)*19+E87)/20 -> 0.0002920315688 | H87: 0.8187688593 | I87: 45.01775226 | J87: 70 | K87: 30
A88: 2019-04-05T12:10:00 | B88: 1.83598 | C88: -5e-05 | D88: FALSE | E88: 5e-05 | F88: 0.0002271510368 | G88: 0.0002799299904 | H88: 0.8114565948 | I88: 44.79580671 | J88: 70 | K88: 30
A89: 2019-04-05T12:20:00 | B89: 1.83399 | C89: -0.00199 | D89: FALSE | E89: 0.00199 | F89: 0.0002157934849 | G89: 0.0003654334909 | H89: 0.5905137059 | I89: 37.12723152 | J89: 70 | K89: 30
A90: 2019-04-05T12:30:00 | B90: 1.83394 | C90: -5e-05 | D90: FALSE | E90: 5e-05 | F90: 0.0002050038107 | G90: 0.0003496618163 | H90: 0.5862916713 | I90: 36.95989092 | J90: 70 | K90: 30
A91: 2019-04-05T12:40:00 | B91: 1.83149 | C91: -0.00245 | D91: FALSE | E91: 0.00245 | F91: 0.0001947536202 | G91: 0.0004546787255 | H91: 0.428332379 | I91: 29.98828461 | J91: 70 | K91: 30
A92: 2019-04-05T12:50:00 | B92: 1.83143 | C92: -6e-05 | D92: FALSE | E92: 6e-05 | F92: 0.0001850159392 | G92: 0.0004349447892 | H92: 0.4253779876 | I92: 29.84317081 | J92: 70 | K92: 30
A93: 2019-04-05T13:00:00 | B93: 1.83307 | C93: 0.00164 | D93: 0.00164 | E93: FALSE | F93: 0.0002577651422 | G93: 0.0004131975498 | H93: 0.6238302776 | I93: 38.41720937 | J93: 70 | K93: 30
A94: 2019-04-05T13:10:00 | B94: 1.83318 | C94: 0.00011 | D94: 0.00011 | E94: FALSE | F94: 0.0002503768851 | G94: 0.0003925376723 | H94: 0.6378416717 | I94: 38.94403731 | J94: 70 | K94: 30
A95: 2019-04-05T13:20:00 | B95: 1.83411 | C95: 0.00093 | D95: 0.00093 | E95: FALSE | F95: 0.0002843580408 | G95: 0.0003729107887 | H95: 0.7625363746 | I95: 43.26358228 | J95: 70 | K95: 30
A96: 2019-04-05T13:30:00 | B96: 1.83456 | C96: 0.00045 | D96: 0.00045 | E96: FALSE | F96: 0.0002926401388 | G96: 0.0003542652492 | H96: 0.8260481078 | I96: 45.23693019 | J96: 70 | K96: 30
A97: 2019-04-05T13:40:00 | B97: 1.83391 | C97: -0.00065 | D97: FALSE | E97: 0.00065 | F97: 0.0002780081319 | G97: 0.0003690519868 | H97: 0.7533034418 | I97: 42.96480711 | J97: 70 | K97: 30
A98: 2019-04-05T13:50:00 | B98: 1.83358 | C98: -0.00033 | D98: FALSE | E98: 0.00033 | F98: 0.0002641077253 | G98: 0.0003670993874 | H98: 0.7194447452 | I98: 41.8416903 | J98: 70 | K98: 30
A99: 2019-04-05T14:00:00 | B99: 1.83412 | C99: 0.00054 | D99: 0.00054 | E99: FALSE | F99: 0.000277902339 | G99: 0.0003487444181 | H99: 0.7968653392 | I99: 44.34752687 | J99: 70 | K99: 30
A100: 2019-04-05T14:10:00 | B100: 1.83332 | C100: -0.0008 | D100: FALSE | E100: 0.0008 | F100: 0.000264007222 | G100: 0.0003713071972 | H100: 0.71102102 | I100: 41.55536441 | J100: 70 | K100: 30
A101: 2019-04-05T14:20:00 | B101: 1.83419 | C101: 0.00087 | D101: 0.00087 | E101: FALSE | F101: 0.0002943068609 | G101: 0.0003527418373 | H101: 0.8343406702 | I101: 45.48449935 | J101: 70 | K101: 30
A102: 2019-04-05T14:30:00 | B102: 1.83442 | C102: 0.00023 | D102: 0.00023 | E102: FALSE | F102: 0.0002910915179 | G102: 0.0003351047454 | H102: 0.8686582982 | I102: 46.4856683 | J102: 70 | K102: 30
A103: 2019-04-05T14:40:00 | B103: 1.83483 | C103: 0.00041 | D103: 0.00041 | E103: FALSE | F103: 0.000297036942 | G103: 0.0003183495082 | H103: 0.933052932 | I103: 48.26835916 | J103: 70 | K103: 30
A104: 2019-04-05T14:50:00 | B104: 1.83157 | C104: -0.00326 | D104: FALSE | E104: 0.00326 | F104: 0.0002821850949 | G104: 0.0004654320328 | H104: 0.6062863641 | I104: 37.74460007 | J104: 70 | K104: 30
A105: 2019-04-05T15:00:00 | B105: 1.83385 | C105: 0.00228 | D105: 0.00228 | E105: FALSE | F105: 0.0003820758402 | G105: 0.0004421604311 | H105: 0.8641113344 | I105: 46.35513547 | J105: 70 | K105: 30
A106: 2019-04-05T15:10:00 | B106: 1.83336 | C106: -0.00049 | D106: FALSE | E106: 0.00049 | F106: 0.0003629720481 | G106: 0.0004445524096 | H106: 0.8164887656 | I106: 44.94873743 | J106: 70 | K106: 30
A107: 2019-04-05T15:20:00 | B107: 1.83399 | C107: 0.00063 | D107: 0.00063 | E107: FALSE | F107: 0.0003763234457 | G107: 0.0004223247891 | H107: 0.89107591 | I107: 47.12004977 | J107: 70 | K107: 30
A108: 2019-04-05T15:30:00 | B108: 1.83444 | C108: 0.00045 | D108: 0.00045 | E108: FALSE | F108: 0.0003800072735 | G108: 0.0004012085496 | H108: 0.9471564696 | I108: 48.64305896 | J108: 70 | K108: 30
A109: 2019-04-05T15:40:00 | B109: 1.83326 | C109: -0.00118 | D109: FALSE | E109: 0.00118 | F109: 0.0003610069098 | G109: 0.0004401481222 | H109: 0.8201941383 | I109: 45.06080539 | J109: 70 | K109: 30
A110: 2019-04-05T15:50:00 | B110: 1.83246 | C110: -0.0008 | D110: FALSE | E110: 0.0008 | F110: 0.0003429565643 | G110: 0.000458140716 | H110: 0.7485834642 | I110: 42.81085115 | J110: 70 | K110: 30
A111: 2019-04-05T16:00:00 | B111: 1.83067 | C111: -0.00179 | D111: FALSE | E111: 0.00179 | F111: 0.0003258087361 | G111: 0.0005247336802 | H111: 0.6209030378 | I111: 38.30599507 | J111: 70 | K111: 30
A112: 2019-04-05T16:10:00 | B112: 1.83213 | C112: 0.00146 | D112: 0.00146 | E112: FALSE | F112: 0.0003825182993 | G112: 0.0004984969962 | H112: 0.7673432381 | I112: 43.41789538 | J112: 70 | K112: 30
A113: 2019-04-05T16:20:00 | B113: 1.83277 | C113: 0.00064 | D113: 0.00064 | E113: FALSE | F113: 0.0003953923843 | G113: 0.0004735721464 | H113: 0.8349147797 | I113: 45.5015562 | J113: 70 | K113: 30
A114: 2019-04-05T16:30:00 | B114: 1.83393 | C114: 0.00116 | D114: 0.00116 | E114: FALSE | F114: 0.0004336227651 | G114: 0.0004498935391 | H114: 0.9638341683 | I114: 49.07920352 | J114: 70 | K114: 30
A115: 2019-04-05T16:40:00 | B115: 1.83339 | C115: -0.00054 | D115: FALSE | E115: 0.00054 | F115: 0.0004119416268 | G115: 0.0004543988621 | H115: 0.9065639489 | I115: 47.5496219 | J115: 70 | K115: 30
A116: 2019-04-05T16:50:00 | B116: 1.83301 | C116: -0.00038 | D116: FALSE | E116: 0.00038 | F116: 0.0003913445455 | G116: 0.000450678919 | H116: 0.8683444665 | I116: 46.47667933 | J116: 70 | K116: 30
A117: 2019-04-05T17:00:00 | B117: 1.83322 | C117: 0.00021 | D117: 0.00021 | E117: FALSE | F117: 0.0003822773182 | G117: 0.0004281449731 | H117: 0.8928688698 | I117: 47.17013862 | J117: 70 | K117: 30
A118: 2019-04-05T17:10:00 | B118: 1.83307 | C118: -0.00015 | D118: FALSE | E118: 0.00015 | F118: 0.0003631634523 | G118: 0.0004142377244 | H118: 0.8767029918 | I118: 46.71506336 | J118: 70 | K118: 30
A119: 2019-04-05T17:20:00 | B119: 1.83345 | C119: 0.00038 | D119: 0.00038 | E119: FALSE | F119: 0.0003640052797 | G119: 0.0003935258382 | H119: 0.9249844466 | I119: 48.05152833 | J119: 70 | K119: 30
A120: 2019-04-05T17:30:00 | B120: 1.83316 | C120: -0.00029 | D120: FALSE | E120: 0.00029 | F120: 0.0003458050157 | G120: 0.0003883495463 | H120: 0.8904478427 | I120: 47.10248136 | J120: 70 | K120: 30
A121: 2019-04-05T17:40:00 | B121: 1.83443 | C121: 0.00127 | D121: 0.00127 | E121: FALSE | F121: 0.0003920147649 | G121: 0.000368932069 | H121: 1.06256625 | I121: 51.51670885 | J121: 70 | K121: 30
A122: 2019-04-05T17:50:00 | B122: 1.83505 | C122: 0.00062 | D122: 0.00062 | E122: FALSE | F122: 0.0004034140267 | G122: 0.0003504854655 | H122: 1.151014996 | I122: 53.51031946 | J122: 70 | K122: 30
A123: 2019-04-05T18:00:00 | B123: 1.83481 | C123: -0.00024 | D123: FALSE | E123: 0.00024 | F123: 0.0003832433253 | G123: 0.0003449611923 | H123: 1.110975188 | I123: 52.62852895 | J123: 70 | K123: 30
A124: 2019-04-05T18:10:00 | B124: 1.83501 | C124: 0.0002 | D124: 0.0002 | E124: FALSE | F124: 0.0003740811591 | G124: 0.0003277131326 | H124: 1.14148968 | I124: 53.30353403 | J124: 70 | K124: 30
A125: 2019-04-05T18:20:00 | B125: 1.83467 | C125: -0.00034 | D125: FALSE | E125: 0.00034 | F125: 0.0003553771011 | G125: 0.000328327476 | H125: 1.082386115 | I125: 51.97816616 | J125: 70 | K125: 30
A126: 2019-04-05T18:30:00 | B126: 1.83436 | C126: -0.00031 | D126: FALSE | E126: 0.00031 | F126: 0.0003376082461 | G126: 0.0003274111022 | H126: 1.031144771 | I126: 50.76668024 | J126: 70 | K126: 30
A127: 2019-04-05T18:40:00 | B127: 1.83386 | C127: -0.0005 | D127: FALSE | E127: 0.0005 | F127: 0.0003207278338 | G127: 0.0003360405471 | H127: 0.9544319474 | I127: 48.83423793 | J127: 70 | K127: 30
A128: 2019-04-05T18:50:00 | B128: 1.83406 | C128: 0.0002 | D128: 0.0002 | E128: FALSE | F128: 0.0003146914421 | G128: 0.0003192385197 | H128: 0.9857564881 | I128: 49.64135804 | J128: 70 | K128: 30
A129: 2019-04-05T19:00:00 | B129: 1.83376 | C129: -0.0003 | D129: FALSE | E129: 0.0003 | F129: 0.00029895687 | G129: 0.0003182765938 | H129: 0.9392989489 | I129: 48.43497437 | J129: 70 | K129: 30
A130: 2019-04-05T19:10:00 | B130: 1.83373 | C130: -3e-05 | D130: FALSE | E130: 3e-05 | F130: 0.0002840090265 | G130: 0.0003038627641 | H130: 0.9346621569 | I130: 48.31138882 | J130: 70 | K130: 30
A131: 2019-04-05T19:20:00 | B131: 1.83338 | C131: =(B131-B130) -> -0.00035 | D131: =IF(C131 > 0, C131) -> FALSE | E131: =IF(C131 < 0, C131 * -1) -> 0.00035 | F131: 0.0002698085752 | G131: 0.0003061696259 | H131: 0.8812388701 | I131: 46.84353933 | J131: 70 | K131: 30
A132: 2019-04-05T19:30:00 | B132: 1.83378 | C132: 0.0004 | D132: 0.0004 | E132: FALSE | F132: 0.0002763181464 | G132: 0.0002908611446 | H132: 0.950000203 | I132: 48.71795406 | J132: 70 | K132: 30
A133: 2019-04-05T19:40:00 | B133: 1.83448 | C133: 0.0007 | D133: 0.0007 | E133: FALSE | F133: 0.0002975022391 | G133: 0.0002763180873 | H133: 1.076665816 | I133: 51.84588718 | J133: 70 | K133: 30
A134: 2019-04-05T19:50:00 | B134: 1.83431 | C134: -0.00017 | D134: FALSE | E134: 0.00017 | F134: 0.0002826271271 | G134: 0.000271002183 | H134: 1.042896127 | I134: 51.04988518 | J134: 70 | K134: 30
A135: 2019-04-05T20:00:00 | B135: 1.83388 | C135: -0.00043 | D135: FALSE | E135: 0.00043 | F135: 0.0002684957708 | G135: 0.0002789520738 | H135: 0.9625157723 | I135: 49.0449955 | J135: 70 | K135: 30
A136: 2019-04-05T20:10:00 | B136: 1.83383 | C136: -5e-05 | D136: FALSE | E136: 5e-05 | F136: 0.0002550709822 | G136: 0.0002675044701 | H136: 0.9535204481 | I136: 48.81036434 | J136: 70 | K136: 30
A137: 2019-04-05T20:20:00 | B137: 1.83375 | C137: -8e-05 | D137: FALSE | E137: 8e-05 | F137: 0.0002423174331 | G137: 0.0002581292466 | H137: 0.9387445874 | I137: 48.42022995 | J137: 70 | K137: 30
A138: 2019-04-05T20:30:00 | B138: 1.83503 | C138: 0.00128 | D138: 0.00128 | E138: FALSE | F138: 0.0002942015615 | G138: 0.0002452227843 | H138: 1.199731755 | I138: 54.53991162 | J138: 70 | K138: 30
A139: 2019-04-05T20:40:00 | B139: 1.83403 | C139: -0.001 | D139: FALSE | E139: 0.001 | F139: 0.0002794914834 | G139: 0.0002829616451 | H139: 0.9877362824 | I139: 49.69151548 | J139: 70 | K139: 30
A140: 2019-04-05T20:50:00 | B140: 1.83388 | C140: -0.00015 | D140: FALSE | E140: 0.00015 | F140: 0.0002655169092 | G140: 0.0002763135628 | H140: 0.9609260816 | I140: 49.00368712 | J140: 70 | K140: 30
A141: 2019-04-07T19:00:00 | B141: 1.83479 | C141: 0.00091 | D141: 0.00091 | E141: FALSE | F141: 0.0002977410638 | G141: 0.0002624978847 | H141: 1.134260812 | I141: 53.14537031 | J141: 70 | K141: 30
A142: 2019-04-07T19:10:00 | B142: 1.83459 | C142: -0.0002 | D142: FALSE | E142: 0.0002 | F142: 0.0002828540106 | G142: 0.0002593729905 | H142: 1.090529936 | I142: 52.16523892 | J142: 70 | K142: 30
A143: 2019-04-07T19:20:00 | B143: 1.83459 | C143: 0 | D143: FALSE | E143: FALSE | F143: 0.00026871131 | G143: 0.0002464043409 | H143: 1.090529936 | I143: 52.16523892 | J143: 70 | K143: 30
A144: 2019-04-07T19:30:00 | B144: 1.83459 | C144: 0 | D144: FALSE | E144: FALSE | F144: 0.0002552757445 | G144: 0.0002340841239 | H144: 1.090529936 | I144: 52.16523892 | J144: 70 | K144: 30
A145: 2019-04-07T20:30:00 | B145: 1.83459 | C145: 0 | D145: FALSE | E145: FALSE | F145: 0.0002425119573 | G145: 0.0002223799177 | H145: 1.090529936 | I145: 52.16523892 | J145: 70 | K145: 30
A146: 2019-04-07T20:50:00 | B146: 1.83381 | C146: -0.00078 | D146: FALSE | E146: 0.00078 | F146: 0.0002303863594 | G146: 0.0002502609218 | H146: 0.9205846354 | I146: 47.93252109 | J146: 70 | K146: 30
A147: 2019-04-07T21:00:00 | B147: 1.83256 | C147: -0.00125 | D147: FALSE | E147: 0.00125 | F147: 0.0002188670415 | G147: 0.0003002478757 | H147: 0.7289545045 | I147: 42.16157814 | J147: 70 | K147: 30
A148: 2019-04-07T21:10:00 | B148: 1.83222 | C148: -0.00034 | D148: FALSE | E148: 0.00034 | F148: 0.0002079236894 | G148: 0.0003022354819 | H148: 0.6879526125 | I148: 40.75663069 | J148: 70 | K148: 30
A149: 2019-04-07T21:20:00 | B149: 1.83366 | C149: 0.00144 | D149: 0.00144 | E149: FALSE | F149: 0.0002695275049 | G149: 0.0002871237078 | H149: 0.9387156044 | I149: 48.41945885 | J149: 70 | K149: 30
A150: 2019-04-07T21:30:00 | B150: 1.83474 | C150: 0.00108 | D150: 0.00108 | E150: FALSE | F150: 0.0003100511297 | G150: 0.0002727675224 | H150: =F150/G150 -> 1.136686387 | I150: =100-(100/(1+H150)) -> 53.19855989 | J150: 70 | K150: 30
A151: 2019-04-07T21:40:00 | B151: 1.83459 | C151: -0.00015 | D151: FALSE | E151: 0.00015 | F151: =((F150)*19+D151)/20 -> 0.0002945485732 | G151: =((G150)*19+E151)/20 -> 0.0002666291463 | H151: 1.104712584 | I151: 52.48757443 | J151: 70 | K151: 30
A152: 2019-04-07T21:50:00 | B152: 1.83277 | C152: -0.00182 | D152: FALSE | E152: 0.00182 | F152: 0.0002798211445 | G152: 0.000344297689 | H152: 0.8127302433 | I152: 44.83459391 | J152: 70 | K152: 30
A153: 2019-04-07T22:00:00 | B153: 1.83339 | C153: 0.00062 | D153: 0.00062 | E153: FALSE | F153: 0.0002968300873 | G153: 0.0003270828046 | H153: 0.9075074665 | I153: 47.57556562 | J153: 70 | K153: 30
A154: 2019-04-07T22:10:00 | B154: 1.83317 | C154: -0.00022 | D154: FALSE | E154: 0.00022 | F154: 0.0002819885829 | G154: 0.0003217286643 | H154: 0.8764795127 | I154: 46.7087174 | J154: 70 | K154: 30
A155: 2019-04-07T22:20:00 | B155: 1.83338 | C155: 0.00021 | D155: 0.00021 | E155: FALSE | F155: 0.0002783891538 | G155: 0.0003056422311 | H155: 0.9108334041 | I155: 47.66681397 | J155: 70 | K155: 30
A156: 2019-04-07T22:30:00 | B156: 1.83412 | C156: 0.00074 | D156: 0.00074 | E156: FALSE | F156: 0.0003014696961 | G156: 0.0002903601196 | H156: 1.038261372 | I156: 50.93857865 | J156: 70 | K156: 30
A157: 2019-04-07T22:40:00 | B157: 1.83449 | C157: 0.00037 | D157: 0.00037 | E157: FALSE | F157: 0.0003048962113 | G157: 0.0002758421136 | H157: 1.105328724 | I157: 52.50147928 | J157: 70 | K157: 30
A158: 2019-04-07T22:50:00 | B158: 1.83452 | C158: 3e-05 | D158: 3e-05 | E158: FALSE | F158: 0.0002911514007 | G158: 0.0002620500079 | H158: 1.111052822 | I158: 52.63027104 | J158: 70 | K158: 30
A159: 2019-04-07T23:00:00 | B159: 1.83465 | C159: 0.00013 | D159: 0.00013 | E159: FALSE | F159: 0.0002830938307 | G159: 0.0002489475075 | H159: 1.137162744 | I159: 53.20899155 | J159: 70 | K159: 30
A160: 2019-04-07T23:10:00 | B160: 1.83486 | C160: 0.00021 | D160: 0.00021 | E160: FALSE | F160: 0.0002794391392 | G160: 0.0002365001321 | H160: 1.181560182 | I160: 54.16124624 | J160: 70 | K160: 30
A161: 2019-04-07T23:20:00 | B161: 1.83557 | C161: 0.00071 | D161: 0.00071 | E161: FALSE | F161: 0.0003009671822 | G161: 0.0002246751255 | H161: 1.339566102 | I161: 57.25703159 | J161: 70 | K161: 30
A162: 2019-04-07T23:30:00 | B162: 1.83555 | C162: -2e-05 | D162: FALSE | E162: 2e-05 | F162: 0.0002859188231 | G162: 0.0002144413692 | H162: 1.333319332 | I162: 57.14259997 | J162: 70 | K162: 30
A163: 2019-04-07T23:40:00 | B163: 1.83552 | C163: -3e-05 | D163: FALSE | E163: 3e-05 | F163: 0.0002716228819 | G163: 0.0002052193008 | H163: 1.323573762 | I163: 56.96284678 | J163: 70 | K163: 30
A164: 2019-04-07T23:50:00 | B164: 1.83617 | C164: 0.00065 | D164: 0.00065 | E164: FALSE | F164: 0.0002905417378 | G164: 0.0001949583357 | H164: 1.490276047 | I164: 59.84380923 | J164: 70 | K164: 30
A165: 2019-04-08 | B165: 1.83647 | C165: 0.0003 | D165: 0.0003 | E165: FALSE | F165: 0.000291014651 | G165: 0.000185210419 | H165: 1.571265011 | I165: 61.10863735 | J165: 70 | K165: 30
A166: 2019-04-08T00:10:00 | B166: 1.83736 | C166: 0.00089 | D166: 0.00089 | E166: FALSE | F166: 0.0003209639184 | G166: 0.000175949898 | H166: 1.824177917 | I166: 64.59146592 | J166: 70 | K166: 30
A167: 2019-04-08T00:20:00 | B167: 1.83748 | C167: 0.00012 | D167: 0.00012 | E167: FALSE | F167: 0.0003109157225 | G167: 0.0001671524031 | H167: 1.860073303 | I167: 65.03586118 | J167: 70 | K167: 30
A168: 2019-04-08T00:30:00 | B168: 1.8377 | C168: 0.00022 | D168: 0.00022 | E168: FALSE | F168: 0.0003063699364 | G168: 0.000158794783 | H168: 1.9293451 | I168: 65.86267695 | J168: 70 | K168: 30
A169: 2019-04-08T00:40:00 | B169: 1.83862 | C169: 0.00092 | D169: 0.00092 | E169: FALSE | F169: 0.0003370514395 | G169: 0.0001508550438 | H169: 2.234273585 | I169: 69.08115613 | J169: 70 | K169: 30
A170: 2019-04-08T00:50:00 | B170: 1.83866 | C170: 4e-05 | D170: 4e-05 | E170: FALSE | F170: 0.0003221988676 | G170: 0.0001433122916 | H170: 2.248229122 | I170: 69.21399438 | J170: 70 | K170: 30
A171: 2019-04-08T01:00:00 | B171: 1.83883 | C171: 0.00017 | D171: 0.00017 | E171: FALSE | F171: 0.0003145889242 | G171: 0.000136146677 | H171: 2.310661788 | I171: 69.79455879 | J171: 70 | K171: 30
A172: 2019-04-08T01:10:00 | B172: 1.8385 | C172: -0.00033 | D172: FALSE | E172: 0.00033 | F172: 0.000298859478 | G172: 0.0001458393432 | H172: 2.049237685 | I172: 67.20491797 | J172: 70 | K172: 30
A173: 2019-04-08T01:20:00 | B173: 1.83786 | C173: -0.00064 | D173: FALSE | E173: 0.00064 | F173: 0.0002839165041 | G173: 0.000170547376 | H173: 1.664736865 | I173: 62.47284251 | J173: 70 | K173: 30
A174: 2019-04-08T01:30:00 | B174: 1.83782 | C174: -4e-05 | D174: FALSE | E174: 4e-05 | F174: 0.0002697206789 | G174: 0.0001640200072 | H174: 1.644437672 | I174: 62.18477711 | J174: 70 | K174: 30
A175: 2019-04-08T01:40:00 | B175: 1.83773 | C175: -9e-05 | D175: FALSE | E175: 9e-05 | F175: 0.0002562346449 | G175: 0.0001603190069 | H175: 1.598279892 | I175: 61.5129993 | J175: 70 | K175: 30
A176: 2019-04-08T01:50:00 | B176: 1.83844 | C176: 0.00071 | D176: 0.00071 | E176: FALSE | F176: 0.0002789229127 | G176: 0.0001523030565 | H176: 1.831367794 | I176: 64.68138113 | J176: 70 | K176: 30
A177: 2019-04-08T02:00:00 | B177: 1.838 | C177: -0.00044 | D177: FALSE | E177: 0.00044 | F177: 0.0002649767671 | G177: 0.0001666879037 | H177: 1.589658045 | I177: 61.38486307 | J177: 70 | K177: 30
A178: 2019-04-08T02:10:00 | B178: 1.83829 | C178: 0.00029 | D178: 0.00029 | E178: FALSE | F178: 0.0002662279287 | G178: 0.0001583535085 | H178: 1.681225324 | I178: 62.70361946 | J178: 70 | K178: 30
A179: 2019-04-08T02:20:00 | B179: 1.83857 | C179: 0.00028 | D179: 0.00028 | E179: FALSE | F179: 0.0002669165323 | G179: 0.0001504358331 | H179: 1.774288258 | I179: 63.95471894 | J179: 70 | K179: 30
A180: 2019-04-08T02:30:00 | B180: 1.83895 | C180: 0.00038 | D180: 0.00038 | E180: FALSE | F180: 0.0002725707057 | G180: 0.0001429140414 | H180: 1.907235307 | I180: 65.60305945 | J180: 70 | K180: 30
A181: 2019-04-08T02:40:00 | B181: 1.83885 | C181: -0.0001 | D181: FALSE | E181: 0.0001 | F181: 0.0002589421704 | G181: 0.0001407683394 | H181: 1.839491547 | I181: 64.7824273 | J181: 70 | K181: 30
A182: 2019-04-08T02:50:00 | B182: 1.83909 | C182: 0.00024 | D182: 0.00024 | E182: FALSE | F182: 0.0002579950618 | G182: 0.0001337299224 | H182: 1.929224644 | I182: 65.86127315 | J182: 70 | K182: 30
A183: 2019-04-08T03:00:00 | B183: 1.8403 | C183: 0.00121 | D183: 0.00121 | E183: FALSE | F183: 0.0003055953088 | G183: 0.0001270434263 | H183: 2.40543976 | I183: 70.63521687 | J183: 70 | K183: 30
A184: 2019-04-08T03:10:00 | B184: 1.84053 | C184: 0.00023 | D184: 0.00023 | E184: FALSE | F184: 0.0003018155433 | G184: 0.000120691255 | H184: 2.500724211 | I184: 71.43448213 | J184: 70 | K184: 30
A185: 2019-04-08T03:20:00 | B185: 1.84036 | C185: -0.00017 | D185: FALSE | E185: 0.00017 | F185: 0.0002867247662 | G185: 0.0001231566922 | H185: 2.328129808 | I185: 69.95309505 | J185: 70 | K185: 30
A186: 2019-04-08T03:30:00 | B186: 1.84184 | C186: 0.00148 | D186: 0.00148 | E186: FALSE | F186: 0.0003463885278 | G186: 0.0001169988576 | H186: 2.960614616 | I186: 74.75139348 | J186: 70 | K186: 30
A187: 2019-04-08T03:40:00 | B187: 1.84226 | C187: 0.00042 | D187: 0.00042 | E187: FALSE | F187: 0.0003500691015 | G187: 0.0001111489147 | H187: 3.149550334 | I187: 75.90100325 | J187: 70 | K187: 30
A188: 2019-04-08T03:50:00 | B188: 1.84271 | C188: 0.00045 | D188: 0.00045 | E188: FALSE | F188: 0.0003550656464 | G188: 0.000105591469 | H188: 3.36263573 | I188: 77.07807706 | J188: 70 | K188: 30
A189: 2019-04-08T04:00:00 | B189: 1.84275 | C189: 4e-05 | D189: 4e-05 | E189: FALSE | F189: 0.0003393123641 | G189: 0.0001003118955 | H189: 3.382573545 | I189: 77.18235667 | J189: 70 | K189: 30
A190: 2019-04-08T04:10:00 | B190: 1.84274 | C190: -1e-05 | D190: FALSE | E190: 1e-05 | F190: 0.0003223467459 | G190: 9.579630076e-05 | H190: 3.364918513 | I190: 77.09006486 | J190: 70 | K190: 30
A191: 2019-04-08T04:20:00 | B191: 1.84247 | C191: -0.00027 | D191: FALSE | E191: 0.00027 | F191: 0.0003062294086 | G191: 0.0001045064857 | H191: 2.930243099 | I191: 74.55628126 | J191: 70 | K191: 30
A192: 2019-04-08T04:30:00 | B192: 1.84271 | C192: 0.00024 | D192: 0.00024 | E192: FALSE | F192: 0.0003029179381 | G192: 9.928116143e-05 | H192: 3.051111951 | I192: 75.31541927 | J192: 70 | K192: 30
A193: 2019-04-08T04:40:00 | B193: 1.84241 | C193: -0.0003 | D193: FALSE | E193: 0.0003 | F193: 0.0002877720412 | G193: 0.0001093171034 | H193: 2.632452127 | I193: 72.47038736 | J193: 70 | K193: 30
A194: 2019-04-08T04:50:00 | B194: 1.84209 | C194: -0.00032 | D194: FALSE | E194: 0.00032 | F194: 0.0002733834392 | G194: 0.0001198512482 | H194: 2.281022879 | I194: 69.52169988 | J194: 70 | K194: 30
A195: 2019-04-08T05:00:00 | B195: 1.84177 | C195: =(B195-B194) -> -0.00032 | D195: =IF(C195 > 0, C195) -> FALSE | E195: =IF(C195 < 0, C195 * -1) -> 0.00032 | F195: 0.0002597142672 | G195: 0.0001298586858 | H195: 1.999976094 | I195: 66.66640105 | J195: 70 | K195: 30
A196: 2019-04-08T05:10:00 | B196: 1.84251 | C196: 0.00074 | D196: 0.00074 | E196: FALSE | F196: 0.0002837285538 | G196: 0.0001233657515 | H196: 2.29989726 | I196: 69.69602623 | J196: 70 | K196: 30
A197: 2019-04-08T05:20:00 | B197: 1.84248 | C197: -3e-05 | D197: FALSE | E197: 3e-05 | F197: 0.0002695421262 | G197: 0.0001186974639 | H197: 2.270833068 | I197: 69.42674911 | J197: 70 | K197: 30
A198: 2019-04-08T05:30:00 | B198: 1.84208 | C198: -0.0004 | D198: FALSE | E198: 0.0004 | F198: 0.0002560650198 | G198: 0.0001327625907 | H198: 1.928743771 | I198: 65.85566788 | J198: 70 | K198: 30
A199: 2019-04-08T05:40:00 | B199: 1.84185 | C199: -0.00023 | D199: FALSE | E199: 0.00023 | F199: 0.0002432617689 | G199: 0.0001376244612 | H199: 1.76757654 | I199: 63.86730464 | J199: 70 | K199: 30
A200: 2019-04-08T05:50:00 | B200: 1.84119 | C200: -0.00066 | D200: FALSE | E200: 0.00066 | F200: 0.0002310986804 | G200: 0.0001637432381 | H200: 1.411347931 | I200: 58.52941888 | J200: 70 | K200: 30
... 41 more rows

Sheet config
A1: AssetType | B1: Horizon
A2: FxSpot | B2: 1
B3: 5
B4: 10
B5: 15
B6: 30
B7: 60
B8: 120
B9: 240
B10: 360
B11: 480
B12: 1440
B13: 10080
B14: 43200
